Cogmind - Beta 9.6 @@@ ROGUE MODE // 2020.06.01 @ 12:06:33 Player: Vectis Result: Destroyed by H-66 Slayer with Gauss Rifle Performance ------------- Evolutions (5) 2500 Regions Visited (18) 3600 Robots Destroyed (108) 540 Value Destroyed (4004) 4004 Prototype IDs (41) 820 Alien Tech Used (0) 0 Bonus (3569) 3569 TOTAL SCORE: 15033 Bonus ------- High Alert Combat Kills 62 Follower Combat Kills 2624 Aligned with FarCom 300 Met Data Miner 300 Met Imprinter 300 Friendly Fire -17 Cogmind --------- Core Integrity 0/1000 Matter 300/300 Energy 99/100 System Corruption 5% Temperature Cool (0) Movement Core (100) Ox1 Location -5/Factory Parts ------- > --- POWER (1) -------- (None) > --- PROPULSION (3) --- (None) > --- UTILITY (11) ----- Advanced Melee Analysis Suite Advanced Melee Analysis Suite Target Analyzer > --- WEAPON (2) ------- Great Maul > --- INVENTORY (4) ---- Micro Fission Core System Restoration Module Chronowheel Peak State ------------ > --- POWER ------------ Micro Fission Core > --- PROPULSION ------- Field Propulsion Drive Nuclear Pulse Array > --- UTILITY ---------- Melee Analysis Suite Advanced Melee Analysis Suite Advanced Melee Analysis Suite Target Analyzer Improved Core Analyzer Improved Power Shielding Hacking Suite System Shield System Shield Improved System Shield Advanced System Shield > --- WEAPON ----------- Chainsword Spear > --- INVENTORY -------- Micro Nuclear Core System Restoration Module Chronowheel [Rating: 79] Favorites ----------- Power Light Deuterium Engine Engine Light Deuterium Engine Power Core Light Nuclear Core Propulsion Improved Cesium-ion Thruster Treads Armored Treads Hover Unit Antigrav System Flight Unit Improved Cesium-ion Thruster Utility System Shield Device System Backup Module Storage High-capacity Storage Unit Processor Advanced Melee Analysis Suite Hackware System Shield Protection Hardened Medium Armor Plating Weapon Heavy Assault Rifle Energy Gun EM Pulse Gun Energy Cannon Heavy Ion Cannon Ballistic Gun Heavy Assault Rifle Launcher Grenade Launcher Impact Weapon Great Maul Slashing Weapon Chainsword Piercing Weapon Spear Special Melee Weapon Improved Datajack Build | -11 -10 -10 -10 -9 -8 -7 -7 -7 -7 -7 -7 -6 -6 -6 -6 -6 -5 -5 ------- Run | Scr Mat Min Exi Min Mat Fac Was Fac Low Low Zio Pro Fac Low Low Dat Pro Fac Slots Evolved 10 | . . . . . 4 2 . . . . . . 2 . . . . 2 Power . | . . . . . . . . . . . . . . . . . . . Propulsion 1 | . . . . . 1 . . . . . . . . . . . . . Utility 9 | . . . . . 3 2 . . . . . . 2 . . . . 2 Weapon . | . . . . . . . . . . . . . . . . . . . Parts Attached 142 | 6 4 3 2 . 27 37 . 19 . . 1 . 8 5 7 . 3 20 Power 16 | 1 . 1 . . 3 3 . . . . . . 2 1 2 . . 3 Engine 10 | 1 . . . . 3 3 . . . . . . 1 . 2 . . . Core 6 | . . 1 . . . . . . . . . . 1 1 . . . 3 Reactor . | . . . . . . . . . . . . . . . . . . . Propulsion 37 | 2 . . . . 7 8 . 7 . . . . . 1 4 . 1 7 Treads 12 | 2 . . . . 7 3 . . . . . . . . . . . . Leg . | . . . . . . . . . . . . . . . . . . . Wheel . | . . . . . . . . . . . . . . . . . . . Hover 2 | . . . . . . . . . . . . . . . . . . 2 Flight 23 | . . . . . . 5 . 7 . . . . . 1 4 . 1 5 Utility 48 | 1 1 . 2 . 11 15 . 4 . . . . 5 1 . . 2 6 Device 8 | . . . . . 1 4 . . . . . . 2 . . . . 1 Storage 6 | 1 1 . 2 . 1 . . 1 . . . . . . . . . . Processor 9 | . . . . . 2 2 . . . . . . 1 1 . . . 3 Hackware 15 | . . . . . . 7 . 3 . . . . 2 . . . 2 1 Protection 10 | . . . . . 7 2 . . . . . . . . . . . 1 Artifact . | . . . . . . . . . . . . . . . . . . . Weapon 41 | 2 3 2 . . 6 11 . 8 . . 1 . 1 2 1 . . 4 Energy Gun 4 | 2 . . . . 1 1 . . . . . . . . . . . . Energy Cannon 2 | . . . . . . 2 . . . . . . . . . . . . Ballistic Gun 12 | . 3 1 . . 5 3 . . . . . . . . . . . . Ballistic Cannon . | . . . . . . . . . . . . . . . . . . . Launcher 2 | . . 1 . . . 1 . . . . . . . . . . . . Special Weapon . | . . . . . . . . . . . . . . . . . . . Impact Weapon 1 | . . . . . . . . . . . . . . . . . . 1 Slashing Weapon 5 | . . . . . . 2 . 1 . . . . . . 1 . . 1 Piercing Weapon 11 | . . . . . . 2 . 3 . . 1 . 1 2 . . . 2 Special Melee Weapon 4 | . . . . . . . . 4 . . . . . . . . . . Unidentified Prototypes 4 | . . . . . . 1 . 2 . . . . . . . . . 1 Parts Lost 54 | . 1 1 . . 5 17 . . . . . . 4 . 6 . 5 15 Power 6 | . . 1 . . . 2 . . . . . . 1 . 1 . 1 . Propulsion 18 | . . . . . . 6 . . . . . . . . 4 . 2 6 Utility 19 | . . . . . 4 3 . . . . . . 2 . 1 . 2 7 Weapon 11 | . 1 . . . 1 6 . . . . . . 1 . . . . 2 Highest Loss Streak 9 | . 1 1 . . 2 6 . . . . . . 3 . 5 . 4 9 Average Slot Usage (%) 95 | . 97 97 100 100 92 96 92 99 100 100 100 100 87 91 93 80 70 88 Engine 5 | . 14 4 . . 8 6 7 7 7 7 7 7 4 1 1 6 2 . Core 1 | . . 8 14 14 . . . . . . . . . 4 4 . . 4 Treads 9 | . 28 28 28 28 26 16 . . . . . . . . . . . . Flight 12 | . . . . . . 4 15 22 23 23 23 23 20 20 19 20 16 9 Storage 8 | . 26 28 28 28 18 10 . . 7 7 7 7 6 6 6 6 4 . Processor 4 | . . . . . 3 1 . . . . . . . 9 13 13 13 26 Hackware 31 | . . . . . . 32 46 51 46 46 46 46 43 40 38 33 33 28 Protection 3 | . . . . . 16 4 . . . . . . . . . . . 4 Ballistic Gun 6 | . 14 28 28 28 17 8 . . . . . . . . . . . . Slashing Weapon 2 | . . . . . . 1 . 3 7 7 4 . . . 3 . . 4 Piercing Weapon 3 | . . . . . . 3 15 8 . . 2 7 4 4 4 . . 4 Special Melee Weapon 1 | . . . . . . . . 2 7 7 7 7 4 . . . . . Naked Turns . | . . . . . . . . . . . . . . . . . . . Heaviest Build 94 | 11 45 47 75 75 94 91 10 17 17 17 17 16 19 20 18 17 17 13 Greatest Support 68 | 40 40 40 40 40 60 68 14 21 19 19 19 19 19 19 19 17 17 29 Greatest Overweight (x) 3 | . 1 1 1 1 2 2 . 3 . . . . 3 1 3 . 2 1 Average Overweight (x) . | . . 1 1 1 1 . . . . . . . . . . . . . Largest Inventory Capacity 20 | 6 14 14 20 20 20 20 4 8 8 8 8 8 8 8 8 8 8 4 Average Capacity 10 | 5 12 14 17 20 20 15 4 4 8 8 8 8 8 8 8 8 6 4 Most Carried 20 | 5 14 14 17 17 20 20 4 4 4 4 4 4 6 8 8 6 7 4 Average Carried 9 | 2 9 14 15 17 19 14 4 3 4 4 4 4 5 7 7 6 5 3 Final Capacity 20 | 6 14 14 20 20 20 4 4 8 8 8 8 8 8 8 8 8 4 4 Final Carried 20 | 5 14 14 17 17 20 4 4 4 4 4 4 4 6 8 6 6 4 3 Class Distribution -------------------- 43% | Wizard-Sprinter 26% | Hacker-Mutant 13% | Hauler-Mutant 6% | Wizard-Mutant 4% | Mutant 3% | Scavenger-Mutant Dominant Class ---------------- Mutant | -10/Materials Mutant | -10/Mines Hauler-Mutant | -10/Exiles Hauler-Mutant | -9/Mines Hauler-Mutant | -8/Materials Hacker-Mutant | -7/Factory Wizard-Mutant | -7/Waste Wizard-Sprinter | -7/Factory Wizard-Sprinter | -7/Lower Caves Wizard-Sprinter | -7/Lower Caves Wizard-Sprinter | -7/Zion Wizard-Sprinter | -6/Proximity Caves Wizard-Sprinter | -6/Factory Wizard-Sprinter | -6/Lower Caves Wizard-Sprinter | -6/Lower Caves Hacker-Sprinter | -6/Data Miner Hacker-Sprinter | -5/Proximity Caves Hacker-Mutant | -5/Factory Resources | -11 -10 -10 -10 -9 -8 -7 -7 -7 -7 -7 -7 -6 -6 -6 -6 -6 -5 -5 ----------- Run | Scr Mat Min Exi Min Mat Fac Was Fac Low Low Zio Pro Fac Low Low Dat Pro Fac Matter Collected 2963 | 260 191 55 . . 923 919 19 200 . . 10 . 80 30 65 . . 211 Remotely . | . . . . . . . . . . . . . . . . . . . Salvage Created 4414 | 82 102 181 . . 1322 1280 . 214 87 . . . 206 50 102 . . 788 Parts 279 | 3 9 12 . . 83 81 . 16 5 . . . 19 7 7 . . 37 Haulers Intercepted 3 | . . . . . 1 . . 2 . . . . . . . . . . Recyclers Shooed 1 | . . . . . . 1 . . . . . . . . . . . . Parts Field Recycled . | . . . . . . . . . . . . . . . . . . . Retrieved Matter . | . . . . . . . . . . . . . . . . . . . Parts Self-Destructed 61 | . . . . . . . . . 17 21 . 8 . 7 6 . 2 . Prevented 14 | . . . . . . . . . 11 2 . . . 1 . . . . Kills | -11 -10 -10 -10 -9 -8 -7 -7 -7 -7 -7 -7 -6 -6 -6 -6 -6 -5 -5 ------- Run | Scr Mat Min Exi Min Mat Fac Was Fac Low Low Zio Pro Fac Low Low Dat Pro Fac Combat Hostiles Destroyed 86 | . 3 4 . . 31 24 . 1 1 . . . 3 2 4 . . 13 Melee 27 | . . . . . . 4 . 1 1 . . . 3 2 4 . . 12 Guns 51 | . 3 4 . . 31 13 . . . . . . . . . . . . Cannons 3 | . . . . . . 3 . . . . . . . . . . . . AOE 4 | . . . . . . 4 . . . . . . . . . . . . Classes Destroyed 12 | 1 2 1 . . 4 3 . . . . . . 1 . . . . . Worker 4 | . . . . . 1 3 . . . . . . . . . . . . Builder 1 | . . . . . . 1 . . . . . . . . . . . . Hauler 3 | . . . . . 1 . . 2 . . . . . . . . . . Recycler 4 | 1 . . . . . 3 . . . . . . . . . . . . Operator 1 | . . . . . . . . . . . . . 1 . . . . . Watcher 9 | . 2 . . . 1 2 . 2 . . . . 1 . . . . 1 Swarmer 31 | . 3 . . . 12 9 . . . . . . . 2 4 . . 1 Grunt 23 | . . 4 . . 10 3 . . . . . . . . . . . 6 Brawler 1 | . . . . . 1 . . . . . . . . . . . . . Sentry 14 | . . . . . 8 3 . . 1 . . . 1 . . . . 1 Hunter 3 | . . . . . . 2 . . . . . . . . . . . 1 Programmer 14 | . . . . . . 7 . 1 . . . . 2 . . . . 4 Best Kill Streak 8 | 1 2 4 . . 4 8 . 1 1 . . . 1 2 4 . . 5 Combat Bots Only 5 | . 2 4 . . 4 5 . 1 1 . . . 1 2 4 . . 5 Max Kills in Single Turn 5 | 1 1 1 . . 2 5 . 1 1 . . . 1 1 1 . . 1 Gunslinging 1 | . . . . . 1 . . . . . . . . . . . . . Exploded 3 | . . . . . . 3 . . . . . . . . . . . . Melee 1 | . . . . . . 1 . 1 1 . . . 1 1 1 . . 1 Uniques/NPCs Destroyed . | . . . . . . . . . . . . . . . . . . . Combat | -11 -10 -10 -10 -9 -8 -7 -7 -7 -7 -7 -7 -6 -6 -6 -6 -6 -5 -5 -------- Run | Scr Mat Min Exi Min Mat Fac Was Fac Low Low Zio Pro Fac Low Low Dat Pro Fac Damage Taken 8487 | . 157 94 . . 2022 2904 . . 139 . . 36 487 68 457 . 406 1717 Core 2370 | . 17 . . . 171 345 . . 63 . . . 361 39 212 . 155 1007 Absorbed by Shields 95 | . . . . . . . . . 86 . . . 9 . . . . . Core Remaining (%) 62 | 100 . . . 93 68 . . . . . . 41 . . . . 9 . Volleys Fired 233 | 1 17 5 . . 120 90 . . . . . . . . . . . . Largest 2 | 2 2 2 . . 2 2 . . . . . . . . . . . . Hottest 130 | 90 90 46 . . 46 130 . . . . . . . . . . . . Shots Fired 452 | 2 34 10 . . 236 170 . . . . . . . . . . . . Gun 426 | 2 34 10 . . 236 144 . . . . . . . . . . . . Cannon 23 | . . . . . . 23 . . . . . . . . . . . . Launcher 3 | . . . . . . 3 . . . . . . . . . . . . Special . | . . . . . . . . . . . . . . . . . . . Kinetic 396 | . 6 10 . . 236 144 . . . . . . . . . . . . Thermal 35 | 1 11 . . . . 23 . . . . . . . . . . . . Explosive 3 | . . . . . . 3 . . . . . . . . . . . . Electromagnetic 18 | 1 17 . . . . . . . . . . . . . . . . . Robot Hit Streak 30 | 2 4 10 . . 30 20 . . . . . . . . . . . . Robot Miss Streak 4 | . 4 . . . 4 3 . . . . . . . . . . . . Penetration Max . | . . . . . . . . . . . . . . . . . . . Secondary Targets 5 | . . 1 . . 4 . . . . . . . . . . . . . Max Gunslinging Chain 1 | . . 1 . . 1 . . . . . . . . . . . . . Shots Hit Robots 426 | 2 15 9 . . 170 139 . 9 14 2 . . 14 3 7 . . 42 Core Hits 180 | 2 5 5 . . 69 57 . 5 2 . . . 7 2 4 . . 22 Critical Hits 7 | . . . . . 2 2 . . . . . . 2 . . . . 1 Critical Kills 3 | . . . . . 1 . . . . . . . 1 . . . . 1 Critical Parts Destroyed 4 | . . . . . 1 2 . . . . . . 1 . . . . . Melee Attacks 205 | . . . . . . 41 . 37 18 3 . . 20 3 14 . . 69 Impact 25 | . . . . . . . . . . . . . . . . . . 25 Slashing 53 | . . . . . . 18 . 8 14 3 . . . . 3 . . 7 Piercing 118 | . . . . . . 23 . 26 . . . . 18 3 11 . . 37 Sneak Attacks 14 | . . . . . . 1 . 5 4 . . . 2 . . . . 2 Combat Hostiles 2 | . . . . . . . . . . . . . . . . . . 2 Follow-up Attacks 5 | . . . . . . . . 1 . . . . . . 1 . . 3 Damage Inflicted 8890 | 28 190 169 . . 2388 2965 . 358 337 68 . . 450 90 230 . . 1617 Guns 4405 | 25 190 169 . . 2388 1633 . . . . . . . . . . . . Cannons 450 | . . . . . . 450 . . . . . . . . . . . . Explosions 368 | . . . . . . 368 . . . . . . . . . . . . Melee 3655 | . . . . . . 514 . 358 337 68 . . 450 90 230 . . 1608 Ramming 12 | 3 . . . . . . . . . . . . . . . . . 9 Kinetic 4190 | . . 169 . . 2388 1633 . . . . . . . . . . . . Thermal 475 | 13 12 . . . . 450 . . . . . . . . . . . . Explosive 368 | . . . . . . 368 . . . . . . . . . . . . Electromagnetic 190 | 12 178 . . . . . . . . . . . . . . . . . Impact 766 | . . . . . . . . . . . . . . . . . . 766 Slashing 1047 | . . . . . . 376 . 108 337 68 . . . . 36 . . 122 Piercing 1842 | . . . . . . 138 . 250 . . . . 450 90 194 . . 720 Highest Corruption 13 | . . . . . 8 13 6 5 . . . . 3 2 1 1 1 5 Average Corruption 4 | . . . . . 2 6 5 4 . . . . 1 1 1 1 1 2 Corruption Purged 15 | . . . . . . 7 1 5 . . . . 1 1 . . . . Effects 161 | . . . . . 24 115 3 11 . . . . 5 1 1 . . 1 Message Errors 32 | . . . . . 7 19 . 4 . . . . 1 . 1 . . . Matter Fused 26 | . . . . . 1 22 1 1 . . . . . . . . . 1 Heat Flow Errors 20 | . . . . . 6 10 1 1 . . . . 1 1 . . . . Energy Discharges 24 | . . . . . 3 18 . 1 . . . . 2 . . . . . Parts Rejected 1 | . . . . . . 1 . . . . . . . . . . . . Data Loss (minor) 20 | . . . . . 4 12 . 3 . . . . 1 . . . . . Data Loss (major) 4 | . . . . . . 2 1 1 . . . . . . . . . . Misfires 2 | . . . . . . 2 . . . . . . . . . . . . Alerts 1 | . . . . . . 1 . . . . . . . . . . . . Misdirections 15 | . . . . . . 15 . . . . . . . . . . . . Targeting Errors 15 | . . . . . 2 13 . . . . . . . . . . . . Weapon Failures 1 | . . . . . 1 . . . . . . . . . . . . . Overload Shots . | . . . . . . . . . . . . . . . . . . . Overflow Damage 191 | . . . . . . 126 . 17 . . . . . . 29 . . 19 Projectiles 12 | . . . . . . 12 . . . . . . . . . . . . Explosions 3 | . . . . . . 3 . . . . . . . . . . . . Melee 176 | . . . . . . 111 . 17 . . . . . . 29 . . 19 Knockbacks 3 | . . . . . . . . . . . . . . . . . . 3 Impact 2 | . . . . . . . . . . . . . . . . . . 2 Kinetic . | . . . . . . . . . . . . . . . . . . . Secondary 1 | . . . . . . . . . . . . . . . . . . 1 Self-Inflicted Damage 4 | . . . . . . . . . . . . . . . . . . 4 Shots . | . . . . . . . . . . . . . . . . . . . Rammed 5 | 1 . 1 . . . . . . . . . . . . . . . 3 Targets Rammed 5 | 1 . 1 . . . . . . . . . . . . . . . 3 Kicked . | . . . . . . . . . . . . . . . . . . . Crushed . | . . . . . . . . . . . . . . . . . . . Highest Temperature 280 | 30 260 5 . . 280 280 180 234 . . . . 240 142 . . . . Average Temperature 81 | 18 133 2 . . 71 77 92 124 . . . . 113 83 . . . . Received Heat Transfer 1442 | . . 51 . . 765 273 . . 29 . . 12 . . . . 51 261 Effects 4 | . . . . . 3 1 . . . . . . . . . . . . Interference 4 | . . . . . 3 1 . . . . . . . . . . . . Siege Activations . | . . . . . . . . . . . . . . . . . . . Robots Corrupted . | . . . . . . . . . . . . . . . . . . . Combat Hostiles . | . . . . . . . . . . . . . . . . . . . Parts Fried 7 | . 1 . . . . . . . 1 . . . . . . . . 5 Impact Corruptions 2 | . . . . . . . . . . . . . . . . . . 2 Robots Melted . | . . . . . . . . . . . . . . . . . . . Combat Hostiles . | . . . . . . . . . . . . . . . . . . . Parts Melted 3 | . . 1 . . . 1 . 1 . . . . . . . . . . Heat Transferred 666 | 37 37 . . . . 592 . . . . . . . . . . . . Parts Sabotaged . | . . . . . . . . . . . . . . . . . . . Parts Stolen . | . . . . . . . . . . . . . . . . . . . Parts Stripped . | . . . . . . . . . . . . . . . . . . . Power Chain Reactions . | . . . . . . . . . . . . . . . . . . . Missiles Intercepted . | . . . . . . . . . . . . . . . . . . . Alert | -11 -10 -10 -10 -9 -8 -7 -7 -7 -7 -7 -7 -6 -6 -6 -6 -6 -5 -5 ------- Run | Scr Mat Min Exi Min Mat Fac Was Fac Low Low Zio Pro Fac Low Low Dat Pro Fac Peak Influence 529 | 5 104 133 . . 462 361 68 529 . . . . 502 . . . . 495 Average Influence 160 | 1 61 120 . . 147 183 68 200 . . . . 70 . . . . 174 Maximum Alert Level 2 | . . . . . 2 1 . 2 . . . . 2 . . . . 2 Low Security (%) 62 | 100 100 100 . 100 64 41 100 55 . . . . 96 . . . . 69 Level 1 32 | . . . . . 28 58 . 34 . . . . 2 . . . . 23 Level 2 4 | . . . . . 7 . . 10 . . . . . . . . . 6 Level 3 . | . . . . . . . . . . . . . . . . . . . Level 4 . | . . . . . . . . . . . . . . . . . . . Level 5 . | . . . . . . . . . . . . . . . . . . . High Security . | . . . . . . . . . . . . . . . . . . . Max Security . | . . . . . . . . . . . . . . . . . . . Squads Dispatched 36 | . 1 . . . 2 8 . 14 . . . . 4 . . . 1 6 Investigation 5 | . 1 . . . 1 1 . 2 . . . . . . . . . . Extermination 17 | . . . . . . 6 . 6 . . . . 2 . . . . 3 Reinforcement 8 | . . . . . 1 1 . 2 . . . . 2 . . . . 2 Assault 3 | . . . . . . . . 1 . . . . . . . . 1 1 Garrison 3 | . . . . . . . . 3 . . . . . . . . . . Intercept . | . . . . . . . . . . . . . . . . . . . Construction Impeded 2 | . . . . . . 1 . . . . . . . . . . . 1 Haulers Reinforced 2 | . . . . . . . . 1 . . . . . . . . . 1 Stealth | -11 -10 -10 -10 -9 -8 -7 -7 -7 -7 -7 -7 -6 -6 -6 -6 -6 -5 -5 --------- Run | Scr Mat Min Exi Min Mat Fac Was Fac Low Low Zio Pro Fac Low Low Dat Pro Fac Distress Signals 11 | . . . . . 5 . . 1 . . . . 1 . . . . 4 Communications Jammed . | . . . . . . . . . . . . . . . . . . . Distress Signals . | . . . . . . . . . . . . . . . . . . . Times Spotted 233 | . 5 5 . . 54 36 . 37 10 4 . 2 20 3 8 . 15 34 Peak Tracking Total 12 | . 3 4 . . 6 5 . 4 5 2 . 2 6 2 4 . 12 6 Tactical Retreats 21 | . . . . . 10 2 . 2 . . . . 2 . 2 . 3 . Traps | -11 -10 -10 -10 -9 -8 -7 -7 -7 -7 -7 -7 -6 -6 -6 -6 -6 -5 -5 ------- Run | Scr Mat Min Exi Min Mat Fac Was Fac Low Low Zio Pro Fac Low Low Dat Pro Fac Traps Triggered 11 | . 1 . . . 4 4 . . . . . . . . . . . 2 Indirectly . | . . . . . . . . . . . . . . . . . . . Trap Hack Attempts 107 | . . . . . . . . 80 . . . . 27 . . . . . Triggered 1 | . . . . . . . . . . . . . 1 . . . . . Disarmed 36 | . . . . . . . . 28 . . . . 8 . . . . . Reprogrammed 12 | . . . . . . . . 12 . . . . . . . . . . Reused 3 | . . . . . . . . 3 . . . . . . . . . . Traps Extracted . | . . . . . . . . . . . . . . . . . . . Installed . | . . . . . . . . . . . . . . . . . . . Triggered 5 | . . . . . . . . 3 1 . . . 1 . . . . . Machines | -11 -10 -10 -10 -9 -8 -7 -7 -7 -7 -7 -7 -6 -6 -6 -6 -6 -5 -5 ---------- Run | Scr Mat Min Exi Min Mat Fac Was Fac Low Low Zio Pro Fac Low Low Dat Pro Fac Machines Disabled 20 | . . . . . 2 . . 4 1 . . . . . . . . 13 Max in Single Turn 1 | . . . . . 1 . . . 1 . . . . . . . . . Garrison Access 1 | . . . . . . . . . . . . . . . . . . 1 Machines Sabotaged . | . . . . . . . . . . . . . . . . . . . Garrisons Compromised . | . . . . . . . . . . . . . . . . . . . Overloaded Fab Kills . | . . . . . . . . . . . . . . . . . . . Fab Network Shutdowns 1 | . . . . . . . . . . . . . 1 . . . . . Hacking | -11 -10 -10 -10 -9 -8 -7 -7 -7 -7 -7 -7 -6 -6 -6 -6 -6 -5 -5 --------- Run | Scr Mat Min Exi Min Mat Fac Was Fac Low Low Zio Pro Fac Low Low Dat Pro Fac Machines Accessed 94 | . 3 . 2 . 9 19 . 30 . . 1 . 13 2 . 4 . 11 Terminals 56 | . 3 . . . 6 15 . 18 . . . . 8 . . . . 6 Fabricators 14 | . . . . . . 2 . 5 . . . . 4 . . . . 3 Repair Stations 5 | . . . . . 2 1 . 2 . . . . . . . . . . Recycling Units 1 | . . . . . . . . 1 . . . . . . . . . . Scanalyzers 1 | . . . . . . . . . . . . . . . . . . 1 Garrison Access 8 | . . . . . 1 1 . 4 . . . . 1 . . . . 1 Total Hacks 355 | . 7 . 5 . 24 56 . 137 . . 6 . 48 3 . 30 . 39 Successful 236 | . 4 . 5 . 16 33 . 85 . . 6 . 28 3 . 30 . 26 Failed 119 | . 3 . . . 8 23 . 52 . . . . 20 . . . . 13 Catastrophic 15 | . 2 . . . . 7 . 4 . . . . 2 . . . . . Database Lockouts . | . . . . . . . . . . . . . . . . . . . Manual 216 | . 4 . 1 . 18 45 . 83 . . . . 39 . . . . 26 Terminals 219 | . 7 . . . 19 46 . 91 . . . . 32 . . . . 24 Fabricators 59 | . . . . . . 7 . 28 . . . . 12 . . . . 12 Repair Stations 10 | . . . . . 4 2 . 4 . . . . . . . . . . Recycling Units 1 | . . . . . . . . 1 . . . . . . . . . . Scanalyzers 2 | . . . . . . . . . . . . . . . . . . 2 Garrison Access 20 | . . . . . 1 1 . 13 . . . . 4 . . . . 1 Terminal Hacks 104 | . 4 . 5 . 7 6 . 31 . . 6 . 6 3 . 30 . 6 Record 17 | . . . 4 . . . . . . . . . . 2 . 11 . . Part Schematic 19 | . . . . . 1 1 . 1 . . 6 . . . . 10 . . Robot Schematic 10 | . . . . . 1 1 . 2 . . . . . . . 6 . . Prototype ID Bank 4 | . . . . . . . . 1 . . . . . . . 3 . . Open Door 1 | . . . . . . . . . . . . . . 1 . . . . Branch Access Points 3 | . 1 . . . . . . 1 . . . . 1 . . . . . Terminal Index 4 | . . . . . 1 1 . 1 . . . . 1 . . . . . Fabricator Index 3 | . . . . . . . . 1 . . . . 1 . . . . 1 Scanalyzer Index 1 | . . . . . 1 . . . . . . . . . . . . . Alert Level 2 | . 1 . . . . . . 1 . . . . . . . . . . Unreport Threat 12 | . . . . . 1 1 . 7 . . . . 1 . . . . 2 Locate Traps 5 | . 1 . . . . 1 . 3 . . . . . . . . . . Disarm Traps 5 | . . . . . . . . 4 . . . . 1 . . . . . Reprogram Traps 1 | . . . . . . . . 1 . . . . . . . . . . Recall Investigation 2 | . 1 . . . . . . 1 . . . . . . . . . . Recall Extermination 3 | . . . . . . . . 2 . . . . . . . . . 1 Recall Assault 2 | . . . . . . . . 1 . . . . . . . . . 1 Hauler Manifests 1 | . . . . . 1 . . . . . . . . . . . . . Zone Layout 8 | . . . . . 1 1 . 4 . . . . 1 . . . . 1 EX-Prototype ID Bank 1 | . . . 1 . . . . . . . . . . . . . . . Fabricator Hacks 34 | . . . . . . 5 . 16 . . . . 6 . . . . 7 Network Status 1 | . . . . . . . . . . . . . 1 . . . . . Load Schematic 14 | . . . . . . 2 . 7 . . . . 2 . . . . 3 Build 19 | . . . . . . 3 . 9 . . . . 3 . . . . 4 Repair Station Hacks 9 | . . . . . 3 2 . 4 . . . . . . . . . . Scan Component 5 | . . . . . 2 1 . 2 . . . . . . . . . . Repair 4 | . . . . . 1 1 . 2 . . . . . . . . . . Recycling Unit Hacks . | . . . . . . . . . . . . . . . . . . . Scanalyzer . | . . . . . . . . . . . . . . . . . . . Garrison Access Hacks . | . . . . . . . . . . . . . . . . . . . Unauthorized Hacks 89 | . . . . . 6 20 . 34 . . . . 16 . . . . 13 Terminals 61 | . . . . . 5 17 . 20 . . . . 11 . . . . 8 Assimilate 13 | . . . . . 1 2 . 3 . . . . 4 . . . . 3 Botnet 44 | . . . . . 3 14 . 16 . . . . 6 . . . . 5 Operators 4 | . . . . . 1 1 . 1 . . . . 1 . . . . . Fabricators 15 | . . . . . . 2 . 5 . . . . 4 . . . . 4 Report 5 | . . . . . . 1 . 1 . . . . 2 . . . . 1 Siphon 10 | . . . . . . 1 . 4 . . . . 2 . . . . 3 Repair Stations . | . . . . . . . . . . . . . . . . . . . Recycling Units 1 | . . . . . . . . 1 . . . . . . . . . . Mask 1 | . . . . . . . . 1 . . . . . . . . . . Scanalyzers . | . . . . . . . . . . . . . . . . . . . Garrison Access 12 | . . . . . 1 1 . 8 . . . . 1 . . . . 1 Reprogram 12 | . . . . . 1 1 . 8 . . . . 1 . . . . 1 Data Cores Recovered 1 | . . . . . . . . . . . . . 1 . . . . . Used 1 | . . . . . . . . . . . . . 1 . . . . . Hacking Detections 46 | . 3 . . . 7 7 . 17 . . . . 6 . . . . 6 Full Trace Events . | . . . . . . . . . . . . . . . . . . . Feedback Events . | . . . . . . . . . . . . . . . . . . . Feedback Blocked . | . . . . . . . . . . . . . . . . . . . Robot Schematics Acquired 10 | . . . . . 1 1 . 2 . . . . . . . 6 . . Robots Built 20 | . . . . . . 2 . 8 . . . . 4 . . . . 6 Matter 2640 | . . . . . . 189 . 1101 . . . . 441 . . . . 909 Time 1124 | . . . . . . 134 . 326 . . . . 134 . . . . 530 Total Robot Build Rating 86 | . . . . . . 8 . 31 . . . . 16 . . . . 31 Part Schematics Acquired 19 | . . . . . 1 1 . 1 . . 6 . . . . 10 . . Parts Built 4 | . . . . . . 2 . 2 . . . . . . . . . . Matter 825 | . . . . . . 255 . 380 . . . . 190 . . . . . Time 271 | . . . . . . 146 . 94 . . . . 31 . . . . . Total Part Build Rating 16 | . . . . . . 6 . 10 . . . . . . . . . . Parts Repaired 4 | . . . . . 1 1 . 2 . . . . . . . . . . Time 178 | . . . . . 38 32 . 108 . . . . . . . . . . Parts Recycled . | . . . . . . . . . . . . . . . . . . . Recycled Matter . | . . . . . . . . . . . . . . . . . . . Retrieved Matter . | . . . . . . . . . . . . . . . . . . . Retrieved Components . | . . . . . . . . . . . . . . . . . . . Parts Scanalyzed . | . . . . . . . . . . . . . . . . . . . Part Schematics Acquired . | . . . . . . . . . . . . . . . . . . . Parts Damaged . | . . . . . . . . . . . . . . . . . . . Bothacking | -11 -10 -10 -10 -9 -8 -7 -7 -7 -7 -7 -7 -6 -6 -6 -6 -6 -5 -5 ------------ Run | Scr Mat Min Exi Min Mat Fac Was Fac Low Low Zio Pro Fac Low Low Dat Pro Fac Used RIF Installer . | . . . . . . . . . . . . . . . . . . . Robots Hacked 3 | . . . . . . . . 1 . . . . 2 . . . . . Non-combat 3 | . . . . . . . . 1 . . . . 2 . . . . . Combat . | . . . . . . . . . . . . . . . . . . . Robot Hacks Applied 3 | . . . . . . . . 1 . . . . 2 . . . . . parse_system 1 | . . . . . . . . . . . . . 1 . . . . . no_distress 2 | . . . . . . . . 1 . . . . 1 . . . . . Relay Couplers Released 4 | . . . . . . . . 3 . . . . . . . . . 1 Machine Destruction 1 | . . . . . . . . . . . . . . . . . . 1 Programmers 3 | . . . . . . . . 3 . . . . . . . . . . Robots Rewired 2 | . . . . . . . . . 2 . . . . . . . . . Allies Hacked 7 | . . . . . . . . 3 . 1 . . 1 . . . . 2 Hacks Repelled 5 | . . . . . . . . 2 . . . . 3 . . . . . Allies | -11 -10 -10 -10 -9 -8 -7 -7 -7 -7 -7 -7 -6 -6 -6 -6 -6 -5 -5 -------- Run | Scr Mat Min Exi Min Mat Fac Was Fac Low Low Zio Pro Fac Low Low Dat Pro Fac Total Allies 74 | . . 1 . . . 3 20 23 2 1 . . 9 3 . . 1 11 Largest Group 27 | . . 1 1 . . 3 20 27 21 17 14 14 10 4 1 . 1 8 Highest-Rated Group 819 | . . 31 31 . . 102 547 819 604 496 396 396 258 140 26 . 94 284 Highest-Rated Ally 94 | . . 31 31 . . 38 33 38 38 37 37 37 38 38 26 . 94 54 Total Orders 116 | . . . . . . 7 . 8 7 5 1 8 24 2 . . . 54 STAY 61 | . . . . . . 5 . 4 3 3 . 4 10 1 . . . 31 GOTO 3 | . . . . . . . . . 2 . . . 1 . . . . . FOLLOW 46 | . . . . . . 2 . 3 1 2 . 3 12 1 . . . 22 AID 5 | . . . . . . . . 1 1 . 1 1 . . . . . 1 EXPLORE 1 | . . . . . . . . . . . . . 1 . . . . . Ally Attacks 536 | . . 2 . . . 2 . 291 67 39 . 26 30 6 . . 7 66 Total Damage 13120 | . . 22 . . . 23 . 5841 1627 889 . 847 890 79 . . 226 2676 Kills 100 | . . . . . . 1 . 47 10 10 . 5 10 1 . . . 16 Allies Corrupted . | . . . . . . . . . . . . . . . . . . . Allies Melted . | . . . . . . . . . . . . . . . . . . . Intel | -11 -10 -10 -10 -9 -8 -7 -7 -7 -7 -7 -7 -6 -6 -6 -6 -6 -5 -5 ------- Run | Scr Mat Min Exi Min Mat Fac Was Fac Low Low Zio Pro Fac Low Low Dat Pro Fac Robot Analysis Total . | . . . . . . . . . . . . . . . . . . . Derelict Logs Recovered 7 | . . . . 1 . . . . . 1 2 . . 1 1 . 1 . Drone Launches 12 | . . . . . . . . . . . . . 12 . . . . . Drone Recoveries . | . . . . . . . . . . . . . . . . . . . Exploration | -11 -10 -10 -10 -9 -8 -7 -7 -7 -7 -7 -7 -6 -6 -6 -6 -6 -5 -5 ------------- Run | Scr Mat Min Exi Min Mat Fac Was Fac Low Low Zio Pro Fac Low Low Dat Pro Fac Turns Passed 17331 | 99 377 65 631 296 2395 3508 130 3683 697 394 758 378 1233 182 228 27 183 2067 Spaces Moved 20017 | 56 174 24 347 161 970 2836 240 6342 739 423 951 387 2174 339 536 80 412 2826 Core 102 | 8 . . . . . . . 4 . . . . 51 . 6 . 23 10 Treads 2815 | 48 174 24 347 161 970 1091 . . . . . . . . . . . . Legs . | . . . . . . . . . . . . . . . . . . . Wheels . | . . . . . . . . . . . . . . . . . . . Hover 124 | . . . . . . . . . . . . . . . . . . 124 Flight 16976 | . . . . . . 1745 240 6338 739 423 951 387 2123 339 530 80 389 2692 Fastest Speed 29 | 50 160 180 180 180 180 32 34 29 29 29 29 29 29 29 30 32 32 37 Average Speed 53 | 144 176 180 180 180 183 93 34 29 29 29 29 29 31 29 32 32 36 38 Slowest Speed 200 | 160 180 180 180 180 200 200 34 200 29 29 29 29 200 95 200 32 150 120 Overloaded Moves . | . . . . . . . . . . . . . . . . . . . Propulsion Burnouts . | . . . . . . . . . . . . . . . . . . . Robots Hopped 80 | . . . . . . 5 . 41 . . . . 24 . . . 1 9 Cave-ins Triggered . | . . . . . . . . . . . . . . . . . . . Exploration Rate (%) 55 | 4 33 5 71 53 73 68 96 70 69 52 85 52 39 47 70 70 56 32 Regions Visited 18 Branch Regions 11 Pre-discovered Areas 7 | . . 1 1 . . . . . . 1 2 . . 1 . 1 . . Known Exits Taken 3 | . 1 . . . . . . 1 . . . . 1 . . . . . Unknown Exits Taken 13 | 1 . 1 1 1 1 . . . 1 1 1 1 . 1 1 1 1 . Scrap Searched 8 | . . . . . . . . . 1 2 3 . . . 1 . 1 . Spaces Dug 49 | . . . . . . 16 . 12 . . . . 3 . 2 . . 16 Terrain Destroyed 66 | . . . . . . 33 . 12 . . . . 3 . 2 . . 16 Melee 49 | . . . . . . 16 . 12 . . . . 3 . 2 . . 16 Projectile 2 | . . . . . . 2 . . . . . . . . . . . . AOE 15 | . . . . . . 15 . . . . . . . . . . . . Actions | -11 -10 -10 -10 -9 -8 -7 -7 -7 -7 -7 -7 -6 -6 -6 -6 -6 -5 -5 --------- Run | Scr Mat Min Exi Min Mat Fac Was Fac Low Low Zio Pro Fac Low Low Dat Pro Fac Total 25823 | 69 211 34 357 168 1365 3469 287 8044 1197 689 1431 652 2658 417 575 80 441 3679 Wait 5040 | . 3 2 2 8 206 436 48 1599 441 263 480 266 442 60 17 1 26 740 Move 19854 | 56 173 23 346 160 969 2826 239 6271 738 422 950 386 2126 338 535 79 409 2808 Hop 67 | . . . . . . 5 . 29 . . . . 23 . . . 1 9 Pick Up 72 | 6 11 . 4 . 16 12 . 5 . . . . 2 6 2 . 1 7 Fast Attach 66 | 5 3 1 . . 14 17 . 7 . . . . 4 1 . . . 14 Attach 44 | 1 1 . . . 2 18 . 1 . . . . 4 3 7 . 3 4 Detach 9 | . . . . . . . . . . . . . 4 1 3 . . 1 Swap 32 | . . 2 2 . 11 2 . 11 . . 1 . . 1 . . . 2 Drop 82 | . 3 . 3 . 27 23 . 10 . . . . . 4 . . 1 11 Fire 233 | 1 17 5 . . 120 90 . . . . . . . . . . . . Melee 188 | . . . . . . 40 . 31 18 3 . . 20 3 11 . . 62 Ram 3 | . . . . . . . . . . . . . . . . . . 3 Kick . | . . . . . . . . . . . . . . . . . . . Crush 1 | . . 1 . . . . . . . . . . . . . . . . Escape Stasis 18 | . . . . . . . . . . . . . . . . . . 18 Rewire 1 | . . . . . . . . . . 1 . . . . . . . . Trap 107 | . . . . . . . . 80 . . . . 27 . . . . . Miscellaneous 6 | . . . . . . . . . . . . . 6 . . . . . Route ------- -11/Scrapyard -10/Materials (discovered 2 exits: *Min x2) -10/Mines (discovered 2 exits: [*Mat] / *Exi) -10/Exiles -9/Mines -8/Materials (discovered 2 exits: *Fac x2) -7/Factory (discovered 4 exits: *Fac x2 / *Sto / *Low) -7/Waste -7/Factory (discovered 4 exits: *Fac / *Sto / *Low x2) -7/Lower Caves -7/Lower Caves -7/Zion -6/Proximity Caves -6/Factory (discovered 4 exits: *Low x2 / Ext x2) -6/Lower Caves -6/Lower Caves (discovered 2 exits: *Fac / *Dat) -6/Data Miner -5/Proximity Caves -5/Factory (discovered 4 exits: [*Fac x2] / *Upp x2) History --------- Turn | Location | Event 3 | -11/Scrapyard | Discovered new exit (range 16) 100 | -11/Scrapyard | Entered Materials 315 | -10/Materials | Build established: Mutant 352 | -10/Materials | Identified exit to Mines 477 | -10/Materials | Entered Mines 484 | -10/Mines | Escorted by a lone wolf Derelict 495 | -10/Mines | Discovered new exit (range 9) 508 | -10/Mines | Learned location of Storage (-7) 533 | -10/Mines | Deemed a non-threat by the Exiles lab entrance 533 | -10/Mines | Discovered new exit (range 5) 542 | -10/Mines | Entered Exiles 542 | -10/Exiles | Accompanied by 1 ally 584 | -10/Exiles | Met 8R-AWN 614 | -10/Exiles | Met EX-HEX 710 | -10/Exiles | Met EX-DEC 755 | -10/Exiles | Learned location of Zion (-7) 913 | -10/Exiles | Met EX-BIN 943 | -10/Exiles | Aligned with FarCom system 945 | -10/Exiles | Given EX-Vault access code 987 | -10/Exiles | Opened EX-Vault 999 | -10/Exiles | Found Chronowheel 1040 | -10/Exiles | Warned to stay clear of 0b10 Research branches 1061 | -10/Exiles | Exiles lab attacked by MAIN.C 1120 | -10/Exiles | Build established: Hauler-Mutant 1153 | -10/Exiles | Discovered new exit (range 11) 1173 | -10/Exiles | Left Exiles lab with Chronowheel 1173 | -10/Exiles | Entered Mines 1260 | -9/Mines | Learned Materials emergency access door positions 1440 | -9/Mines | Discovered new exit (range 10) 1469 | -9/Mines | Entered Materials 1469 | -8/Materials | Evolved 4 slots: Propulsion x1, Utility x3 2538 | -8/Materials | Discovered new exit (range 5) 2548 | -8/Materials | Build established: Scavenger-Mutant 3182 | -8/Materials | Build established: Hauler-Mutant 3274 | -8/Materials | Repaired Hrd. Medium Armor Plating 3542 | -8/Materials | Discovered new exit (range 5) 3864 | -8/Materials | Entered Factory 3864 | -7/Factory | Evolved 2 slots: Utility x2 4173 | -7/Factory | Build established: Hacker-Mutant 4348 | -7/Factory | Discovered new exit (range 9) 4518 | -7/Factory | Discovered new exit (range 9) 4873 | -7/Factory | Repaired Hvy. Assault Rifle 4881 | -7/Factory | Fabricated System Shield? 5393 | -7/Factory | Fabricated System Shield? 5766 | -7/Factory | System corruption reached 10% 5929 | -7/Factory | Lost 6 parts (1p3n1u1w) 6790 | -7/Factory | Discovered new exit (range 14) 6978 | -7/Factory | Build established: Wizard-Mutant 7085 | -7/Factory | Fabricated P-60 Hacker? 7329 | -7/Factory | Discovered new exit (range 13) 7372 | -7/Factory | Sucked down chute 7372 | -7/Factory | Entered Waste 7373 | -7/Waste | Joined by Warlord forces that had cleared the area 7414 | -7/Waste | Discovered new exit (range 12) 7502 | -7/Waste | Entered Factory 7502 | -7/Factory | Accompanied by 20 allies 7827 | -7/Factory | Build established: Wizard-Sprinter 8479 | -7/Factory | Fabricated P-60 Hacker? 8649 | -7/Factory | Repaired Cesium-ion Thruster 8855 | -7/Factory | Repaired Imp. Cesium-ion Thruster 9012 | -7/Factory | Fabricated P-60 Hacker? 9068 | -7/Factory | Discovered new exit (range 16) 9210 | -7/Factory | Discovered new exit (range 8) 9507 | -7/Factory | Fabricated I-36 Angel (x1) 9547 | -7/Factory | Discovered new exit (range 15) 9621 | -7/Factory | Identified exit to Storage 9621 | -7/Factory | Identified exit to Lower Caves 9712 | -7/Factory | Hacker 4c assimilated hostile Y-54 Guardian 9777 | -7/Factory | Garrison activated, responded to threat 9902 | -7/Factory | First assault squad dispatched 10472 | -7/Factory | Fabricated M-28 Smith? 10852 | -7/Factory | P-60 Hacker assimilated hostile G-47 Trooper 10969 | -7/Factory | Fabricated Imp. System Shield? 11123 | -7/Factory | Fabricated Imp. System Shield (x1) 11132 | -7/Factory | Fabricated P-60 Hacker? 11185 | -7/Factory | Entered Lower Caves 11185 | -7/Lower Caves | Accompanied by 21 allies 11200 | -7/Lower Caves | Spotted B-75 Beast 11347 | -7/Lower Caves | Allies destroyed B-75 Beast 11518 | -7/Lower Caves | Attracted the attention of an 0b10 outpost 11522 | -7/Lower Caves | Core integrity fell below 50% 11622 | -7/Lower Caves | Attacked by a delusional Derelict stockpiling parts 11788 | -7/Lower Caves | Discovered new exit (range 10) 11882 | -7/Lower Caves | Entered another Lower Caves area 11882 | -7/Lower Caves | Accompanied by 16 allies 12202 | -7/Lower Caves | Discovered new exit (range 13) 12276 | -7/Lower Caves | Entered Zion 12276 | -7/Zion | Accompanied by 14 allies 12286 | -7/Zion | Learned Factory trap positions 12343 | -7/Zion | Visited the Megawrench Repair Shop 12384 | -7/Zion | Given A8's code to call for help 12417 | -7/Zion | Learned Factory emergency access door positions 12425 | -7/Zion | Learned location of Armory (-3) 12449 | -7/Zion | Rebuked by Imprinter 12687 | -7/Zion | Megawrench repaired 5 parts 12801 | -7/Zion | Discovered new exit (range 9) 13034 | -7/Zion | Entered Proximity Caves 13034 | -6/Proximity Caves | Accompanied by 14 allies 13363 | -6/Proximity Caves | Discovered new exit (range 9) 13412 | -6/Proximity Caves | Entered Factory 13412 | -6/Factory | Accompanied by 9 allies 13412 | -6/Factory | Evolved 2 slots: Utility x2 13413 | -6/Factory | Loaded intel: 92 trap records 13972 | -6/Factory | Fabricated P-60 Hacker? 13995 | -6/Factory | Discovered new exit (range 14) 14084 | -6/Factory | Spotted B-75 Beast 14138 | -6/Factory | Hacker 5a assimilated hostile Y-54 Guardian 14331 | -6/Factory | Lost 3 parts (1p1u1w) 14471 | -6/Factory | Fabricated P-60 Hacker? 14604 | -6/Factory | Local fabrication network quarantined 14624 | -6/Factory | Identified exit to Lower Caves 14624 | -6/Factory | Identified exit to Extension 14645 | -6/Factory | Entered Lower Caves 14645 | -6/Lower Caves | Accompanied by 4 allies 14737 | -6/Lower Caves | A Commander dispatched an escort 14739 | -6/Lower Caves | Learned Factory security intel 14790 | -6/Lower Caves | Discovered new exit (range 9) 14792 | -6/Lower Caves | Learned Factory terminal intel 14827 | -6/Lower Caves | Entered another Lower Caves area 14827 | -6/Lower Caves | Accompanied by 4 allies 14828 | -6/Lower Caves | Commander's escort returned to base 14828 | -6/Lower Caves | Commander's escort returned to base 14828 | -6/Lower Caves | Commander's escort returned to base 14842 | -6/Lower Caves | Spotted B-75 Beast 14861 | -6/Lower Caves | Discovered new exit (range 15) 14877 | -6/Lower Caves | Core integrity fell below 50% 15029 | -6/Lower Caves | Lost 5 parts (1p3n1u) 15053 | -6/Lower Caves | Discovered new exit (range 5) 15055 | -6/Lower Caves | Entered Data Miner 15055 | -6/Data Miner | Discovered new exit (range 6) 15062 | -6/Data Miner | Met Data Miner 15069 | -6/Data Miner | Learned location of Section 7 (-2) 15069 | -6/Data Miner | Acquired the access code to Warlord's prototype stash 15074 | -6/Data Miner | Received God Mode back door access code from Data Miner 15082 | -6/Data Miner | Entered Proximity Caves 15092 | -5/Proximity Caves | Spotted B-75 Beast 15157 | -5/Proximity Caves | Escorted by Enhanced Grunt 15188 | -5/Proximity Caves | Core integrity fell below 20% 15218 | -5/Proximity Caves | Lost 4 parts (1p2n1u) 15219 | -5/Proximity Caves | Attracted the attention of an 0b10 outpost 15241 | -5/Proximity Caves | Learned location of 1 exit from Factory 15263 | -5/Proximity Caves | Discovered new exit (range 8) 15265 | -5/Proximity Caves | Entered Factory 15265 | -5/Factory | Evolved 2 slots: Utility x2 15266 | -5/Factory | Identified exit to Upper Caves 15269 | -5/Factory | Loaded intel: 19 terminal locations 15582 | -5/Factory | Discovered new exit (range 15) 15818 | -5/Factory | Build established: Hacker-Mutant 15850 | -5/Factory | Fabricated P-70 Sage? 15979 | -5/Factory | Discovered new exit (range 15) 16341 | -5/Factory | Fabricated P-70 Sage (x2) 16422 | -5/Factory | Sage 6d assimilated hostile S-27 Virus 16741 | -5/Factory | Fabricated M-28 Smith? 17212 | -5/Factory | Sage 6b assimilated hostile W-25 Informer 17249 | -5/Factory | Core integrity fell below 50% 17279 | -5/Factory | Lost 9 parts (4n3u2w) 17304 | -5/Factory | Core integrity fell below 20% 17315 | -5/Factory | Fabricated I-36 Angel? 17332 | -5/Factory | Destroyed by H-66 Slayer with Gauss Rifle Last Messages --------------- 17285_ Destroyed Lgt. Angular Momentum Engine. 17285_ G-50 Soldier system corrupted by crushing effect. 17286_ G-50 Soldier system terminally corrupted. 17286_ Unknown Energy Gun fried. 17286_ Unknown Device fried. 17286_ Carbon-fiber Leg fried. 17287_ Acquired 5 matter. 17287_ K-01 Serf collects debris. 17295_ Adv. System Shield destroyed. 17301_ System Shield destroyed. 17310_ System corrupted: Matter fused (-5). 17310_ Acquired 5 matter. 17315_ >> FABRICATOR: Completed I-36 Angel? 17315_ G-50 Soldier destroyed. 17316_ Terminal disabled. 17318_ P-70 Sage knocked back. 17325_ Destroyed Antigrav System. 17325_ P-70 Sage system corrupted by crushing effect. 17329_ Imp. Core Analyzer destroyed. 17332_ Penetrated by Slug. Map ----- +----------------------------------------------------+ | ##+#??????R"" !# ! # """ """ ## """ "" | | #???????????? ?# # """ """ ## """ "" | | #????????????????##" F"## %# ## """ "" | | +?????????????????#""""## # * ] ## | | ??????????????????####### # ?# | | ??????????????????####### # ???# ] | | ??????????????????# ## # ?????# | | ??????????????????# !## #?#+#########+######## | | ??????????????????# ## ### #??????# | | ??????????????????# [ # ## ######### #??????# | | ??????????????????# # %## #???????# ######## | | ??????????????????#/ + < #???????# | | ######??????###?### ! # ####???????#+######## | | #?????? ? # #= %% #????????? ?????? | | #?????? ? # ### ###??????? #???? | | # ???? ? ######## # ####?? !! #???? | | # ? """ """ # "T" %#%#] # """"" !! #???? | | ! # """ """ # + # "# """"" #???? | | + """ """ #] """ # # "# """ #???? | | # # """ # #// "#?? #???? | | # """ """ #! """ #%# / T#??"""" #???? | | # """ """ # # #* #??"""" / #???? | | # """ """ ##+#####%#%= "#???" #???? | | # + %*%+![ "#????? ???? | | # # !%#%! #???? #???? | | ###+########+###### @%############+########## | | k p%%%[ | | % !%=* | | =%[% h [! | | =%[ | | h %* =[ | | % k %!=% % k | | =!== k | | ###+########+##########################+##### | | #??? ????????????????# #???? | | " " " #? """"""""??????????????# #????? | | " " " # ????????????# #????? | | " " " # """"""""" #???????????# #????? | | " " " # #???????????# #????? | | " " " # """"""""" #???????????# #????? | | " " " # #???????????# #????? | | " " " # ?"""""""???????????????# #????? | | " " " #????????????????????????# #????? | | " " "??????????????????????????# #????? | | ???????????????????????????# #????? | | |???????????????????????????# #????? | | ?#?#???????????????????????????##############????? | | ?????????????????????????????????????????????????? | | ?????????????????????????????????????????????????? | | ?????????????????????????????????????????????????? | +----------------------------------------------------+ Best States ------------- Heat Dissipation 48 Energy Generation 18 Energy Capacity 310 Matter Stores 300 Matter Capacity 300 Sight Range 22 Terrain Scan Range 20 Terrain Scan Density 10 Armor Coverage 600 Resistance: TH 10 Power Shielding 66 Propulsion Shielding 33 Evasion (%) 69 Targeting Accuracy 5 Melee Accuracy 21 Target Analysis 5 Core Analysis 8 Recoil Reduction 3 Offensive Hacking 22 Defensive Hacking 58 Item Schematics ----------------- System Shield | -8/Materials | Hacked Xenon Bombardment Thruster | -7/Factory | Hacked Imp. System Shield | -7/Factory | Hacked Beamcaster | -7/Zion | Free Riot Gun | -7/Zion | Free Battle Cannon | -7/Zion | Free Flamer | -7/Zion | Free Enh. Flamer | -7/Zion | Free Ripper | -7/Zion | Free Combat Drone Bay | -6/Data Miner | Free Lgt. Regenerative Plating | -6/Data Miner | Free Exp. Flexi-carbon Leg | -6/Data Miner | Free Cmb. Gravmag System | -6/Data Miner | Free Exp. Cesium-ion Thruster | -6/Data Miner | Free Exp. Terrain Scan Processor | -6/Data Miner | Free Exp. Targeting Computer | -6/Data Miner | Free Tactical Coordination Suite | -6/Data Miner | Free Exp. Transmission Jammer | -6/Data Miner | Free Mni. Smartbomb Launcher | -6/Data Miner | Free Robot Schematics ------------------ M-28 Smith | -8/Materials | Hacked P-60 Hacker | -7/Factory | Hacked I-36 Angel | -7/Factory | Hacked B-48 Gladiator | -7/Factory | Hacked S-27 Virus | -6/Data Miner | Free G-50 Soldier | -6/Data Miner | Free G-67 Veteran | -6/Data Miner | Free L-41 Fighter | -6/Data Miner | Free X-72 Disruptor | -6/Data Miner | Free P-70 Sage | -6/Data Miner | Free Fabricated ------------ System Shield | x1 | -7/Factory System Shield | x1 | -7/Factory P-60 Hacker | x2 | -7/Factory P-60 Hacker | x2 | -7/Factory P-60 Hacker | x2 | -7/Factory I-36 Angel | x1 | -7/Factory M-28 Smith | x1 | -7/Factory Imp. System Shield | x1 | -7/Factory Imp. System Shield | x1 | -7/Factory P-60 Hacker | x2 | -7/Factory P-60 Hacker | x2 | -6/Factory P-60 Hacker | x2 | -6/Factory P-70 Sage | x2 | -5/Factory P-70 Sage | x2 | -5/Factory M-28 Smith | x1 | -5/Factory I-36 Angel | x1 | -5/Factory Alien Tech Used ----------------- None Achievements -------------- Close Call Generalissimo Maybe Next Time I'll Detach My Launcher Challenges ------------ None Game ------ Seed AssaultTiamatDesublimator Manual? 0 Play Time 04:01:25 Cumulative 69.5 hours Start 2020.05.31 @ 21:34:29 End 2020.06.01 @ 12:06:33 Sessions 3 Manual Loads 0 Difficulty Rogue Special Mode None Game No. 39 Rogue 39 Adventurer 0 Explorer 0 Win Type - Total 3 Types 2/0/0/1/0/0/0 Lore% 55 Gallery% 56 Achievement% 49 Wizard Run 0 Options --------- ASCII 1 Keyboard 0 Movement Numpad Keybinds 0 Fullscreen 1 Font 18/SmallcapsGlow Map View 76x50 Tactical HUD 1 Map Filters NONE Filters NONE Steam 1 RUN: 7831eaa3-56ab-495c-ae5a-85ab7a8b76eb